fUST/lending_fUST_20250908
["ID","MTS","AMOUNT","RATE_DAILY","PERIOD"]
[384179308,1757283048057,-480.0,0.00013972,2]
[384179310,1757283048068,-480.0,0.00013972,2]
[384179312,1757283048078,-480.0,0.00013972,2]
[384179314,1757283048087,-480.0,0.00013972,2]
[384179316,1757283048096,-294.61,0.00013972,2]
[384179318,1757283048105,-482.79411719,0.00013972,2]
[384179320,1757283048115,-480.0,0.00013972,2]
[384179322,1757283048124,-480.0,0.00013972,2]
[384179324,1757283048133,-260.9,0.00013972,2]
[384179325,1757283048142,-480.0,0.00013972,2]
[384179327,1757283048151,-480.0,0.00013972,2]
[384179329,1757283048160,-480.0,0.00013972,2]
[384179331,1757283048170,-480.0,0.00013972,2]
[384179333,1757283048179,-195.0380396,0.00013972,2]
[384179335,1757283048188,-314.40756889,0.00013972,2]
[384179337,1757283048198,-480.0,0.00013972,2]
[384179339,1757283048207,-480.0,0.00013972,2]
[384179341,1757283048217,-480.0,0.00013972,2]
[384179342,1757283048225,-482.56071141,0.00013972,2]
[384179344,1757283048235,-480.0,0.00013972,2]
[384179346,1757283048245,-480.0,0.00013972,2]
[384179348,1757283048255,-480.0,0.00013972,2]
[384179350,1757283048264,-480.0,0.00013972,2]
[384179352,1757283048273,-480.0,0.00013972,2]
[384179354,1757283048282,-480.0,0.00013972,2]
[384179355,1757283048291,-365.38467392,0.00013972,2]
[384179357,1757283048300,-480.0,0.00013972,2]
[384179359,1757283048309,-480.0,0.00013972,2]
[384179361,1757283048319,-480.0,0.00013972,2]
[384179363,1757283048327,-480.0,0.00013972,2]
[384179365,1757283048337,-480.0,0.00013972,2]
[384179367,1757283048346,-480.0,0.00013972,2]
[384179369,1757283048355,-480.0,0.00013972,2]
[384179371,1757283048365,-584.78,0.00013972,2]
[384179373,1757283048374,-480.0,0.00013972,2]
[384179375,1757283048384,-480.0,0.00013972,2]
[384179377,1757283048393,-483.02,0.00013972,2]
[384179378,1757283048402,-480.0,0.00013972,2]
[384179380,1757283048411,-255.18761432,0.00013972,2]
[384179382,1757283048421,-480.0,0.00013972,2]
[384179384,1757283048431,-430.0,0.00013972,2]
[384179386,1757283048440,-480.0,0.00013972,2]
[384179388,1757283048450,-230.24,0.00013972,2]
[384179390,1757283048459,-480.0,0.00013972,2]
[384179392,1757283048468,-480.0,0.00013972,2]
[384179394,1757283048478,-480.0,0.00013972,2]
[384179396,1757283048489,-480.0,0.00013972,2]
[384179398,1757283048498,-480.0,0.00013972,2]
[384179400,1757283048508,-480.0,0.00013972,2]
[384179402,1757283048517,-498.25,0.00013972,2]
[384179404,1757283048526,-407.25152457,0.00013972,2]
[384179406,1757283048535,-480.0,0.00013972,2]
[384179408,1757283048544,-480.0,0.00013972,2]
[384179410,1757283048554,-480.0,0.00013972,2]
[384179412,1757283048566,-480.0,0.00013972,2]
[384179413,1757283048576,-480.0,0.00013972,2]
[384179415,1757283048585,-480.0,0.00013972,2]
[384179417,1757283048596,-480.0,0.00013972,2]
[384179420,1757283048607,-480.0,0.00013972,2]
[384179421,1757283048616,-480.0,0.00013972,2]
[384179423,1757283048625,-480.0,0.00013972,2]
[384179425,1757283048634,-480.0,0.00013972,2]
[384179427,1757283048646,-480.0,0.00013972,2]
[384179429,1757283048656,-669.27,0.00013972,2]
[384179431,1757283048665,-480.0,0.00013972,2]
[384179433,1757283048676,-480.0,0.00013972,2]
[384179435,1757283048686,-698.68,0.00013972,2]
[384179437,1757283048696,-480.0,0.00013972,2]
[384179439,1757283048706,-668.28,0.00013972,2]
[384179441,1757283048715,-480.0,0.00013972,2]
[384179443,1757283048725,-480.0,0.00013972,2]
[384179445,1757283048734,-480.26,0.00013972,2]
[384179447,1757283048745,-480.0,0.00013972,2]
[384179449,1757283048755,-497.2,0.00013972,2]
[384179451,1757283048764,-480.0,0.00013972,2]
[384179453,1757283048774,-480.0,0.00013972,2]
[384179455,1757283048783,-480.0,0.00013972,2]
[384179457,1757283048793,-480.0,0.00013972,2]
[384179459,1757283048803,-480.0,0.00013972,2]
[384179461,1757283048813,-480.0,0.00013972,2]
[384179463,1757283048822,-480.0,0.00013972,2]
[384179465,1757283048832,-480.0,0.00013972,2]
[384179467,1757283048841,-480.0,0.00013972,2]
[384179469,1757283048851,-480.0,0.00013972,2]
[384179470,1757283048860,-480.0,0.00013972,2]
[384179472,1757283048870,-480.0,0.00013972,2]
[384179474,1757283048881,-480.0,0.00013972,2]
[384179477,1757283048891,-480.0,0.00013972,2]
[384179478,1757283048900,-571.07,0.00013972,2]
[384179480,1757283048910,-389.55490697,0.00013972,2]
[384179482,1757283048919,-480.0,0.00013972,2]
[384179484,1757283048929,-480.0,0.00013972,2]
[384179486,1757283048938,-480.0,0.00013972,2]
[384179488,1757283048947,-480.0,0.00013972,2]
[384179490,1757283048957,-480.0,0.00013972,2]
[384179492,1757283048966,-480.0,0.00013972,2]
[384179494,1757283048976,-480.0,0.00013972,2]
[384179496,1757283048985,-480.0,0.00013972,2]
[384179498,1757283048995,-502.81,0.00013972,2]
[384179500,1757283049005,-502.33719935,0.00013972,2]
[384179502,1757283049014,-480.0,0.00013972,2]
[384179504,1757283049024,-480.0,0.00013972,2]
[384179506,1757283049034,-480.0,0.00013972,2]
[384179508,1757283049044,-526.85,0.00013972,2]
[384179510,1757283049053,-480.0,0.00013972,2]
[384179512,1757283049062,-480.0,0.00013972,2]
[384179514,1757283049072,-480.0,0.00013972,2]
[384179516,1757283049083,-480.0,0.00013972,2]
[384179518,1757283049092,-480.0,0.00013972,2]
[384179520,1757283049101,-480.0,0.00013972,2]
[384179522,1757283049110,-480.0,0.00013972,2]
[384179523,1757283049120,-1325.99,0.00013972,2]
[384179525,1757283049129,-480.0,0.00013972,2]
[384179527,1757283049138,-480.0,0.00013972,2]
[384179528,1757283049147,-589.02,0.00013972,2]
[384179530,1757283049156,-480.0,0.00013972,2]
[384179532,1757283049166,-480.0,0.00013972,2]
[384179534,1757283049175,-480.0,0.00013972,2]
[384179536,1757283049184,-480.0,0.00013972,2]
[384179538,1757283049194,-480.0,0.00013972,2]
[384179540,1757283049203,-480.0,0.00013972,2]
[384179542,1757283049212,-480.0,0.00013972,2]
[384179543,1757283049221,-480.0,0.00013972,2]
[384179545,1757283049230,-480.0,0.00013972,2]
[384179547,1757283049239,-480.0,0.00013972,2]
[384179549,1757283049249,-562.78,0.00013972,2]
[384179551,1757283049258,-286.98,0.00013972,2]
[384179553,1757283049267,-480.0,0.00013972,2]
[384179555,1757283049276,-515.87,0.00013972,2]
[384179556,1757283049286,-482.37245541,0.00013972,2]
[384179557,1757283049297,-480.0,0.00013972,2]
[384179558,1757283049307,-570.57,0.00013972,2]
[384179559,1757283049316,-480.0,0.00013972,2]
[384179560,1757283049326,-231.510682,0.00013972,2]
[384179561,1757283049336,-645.56,0.00013972,2]
[384179562,1757283049346,-480.0,0.00013972,2]
[384179563,1757283049357,-480.0,0.00013972,2]
[384179564,1757283049366,-480.0,0.00013972,2]
[384179565,1757283049375,-480.0,0.00013972,2]
[384179566,1757283049384,-480.0,0.00013972,2]
[384179567,1757283049474,-480.0,0.00013972,2]
[384179568,1757283049484,-480.0,0.00013972,2]
[384179569,1757283049495,-480.0,0.00013972,2]
[384179571,1757283049504,-480.0,0.00013972,2]
[384179572,1757283049514,-480.0,0.00013972,2]
[384179573,1757283049523,-488.94718418,0.00013972,2]
[384179574,1757283049533,-480.0,0.00013972,2]
[384179575,1757283049543,-480.0,0.00013972,2]
[384179577,1757283049552,-2456.71,0.00013972,2]
[384179579,1757283049562,-480.0,0.00013972,2]
[384179581,1757283049571,-480.0,0.00013972,2]
[384179583,1757283049581,-250.28666959,0.00013972,2]
[384179585,1757283049590,-480.0,0.00013972,2]
[384179587,1757283049600,-480.0,0.00013972,2]
[384179589,1757283049610,-480.0,0.00013972,2]
[384179591,1757283049619,-3651.39,0.00013972,2]
[384179592,1757283049628,-745.77,0.00013972,2]
[384179594,1757283049637,-480.0,0.00013972,2]
[384179596,1757283049646,-480.0,0.00013972,2]
[384179598,1757283049655,-480.0,0.00013972,2]
[384179600,1757283049665,-480.0,0.00013972,2]
[384179602,1757283049674,-284.50591852,0.00013972,2]
[384179604,1757283049683,-480.0,0.00013972,2]
[384179606,1757283049692,-506.24,0.00013972,2]
[384179608,1757283049701,-480.0,0.00013972,2]
[384179610,1757283049711,-684.61,0.00013972,2]
[384179611,1757283049720,-480.0,0.00013972,2]
[384179613,1757283049730,-480.0,0.00013972,2]
[384179615,1757283049740,-480.0,0.00013972,2]
[384179617,1757283049750,-480.0,0.00013972,2]
[384179619,1757283049760,-15696.6,0.00013972,2]
[384179621,1757283049769,-628.00340057,0.00013972,2]
[384179623,1757283049779,-480.0,0.00013972,2]
[384179625,1757283049788,-164.43,0.00013972,2]
[384179627,1757283049797,-480.0,0.00013972,2]
[384179629,1757283049807,-480.0,0.00013972,2]
[384179631,1757283049816,-480.0,0.00013972,2]
[384179632,1757283049826,-840.6,0.00013972,2]
[384179634,1757283049835,-480.0,0.00013972,2]
[384179636,1757283049844,-1035.06,0.00013972,2]
[384179638,1757283049853,-520.88,0.00013972,2]
[384179640,1757283049863,-1971.45,0.00013972,2]
[384179642,1757283049872,-862.29,0.00013972,2]
[384179644,1757283049882,-480.0,0.00013972,2]
[384179646,1757283049891,-480.0,0.00013972,2]
[384179648,1757283049900,-968.05,0.00013972,2]
[384179650,1757283049909,-480.0,0.00013972,2]
[384179652,1757283049919,-747.48,0.00013972,2]
[384179654,1757283049928,-480.0,0.00013972,2]
[384179656,1757283049937,-481.93176269,0.00013972,2]
[384179658,1757283049947,-480.0,0.00013972,2]
[384179659,1757283049956,-480.0,0.00013972,2]
[384179661,1757283049967,-928.59,0.00013972,2]
[384179663,1757283049976,-480.0,0.00013972,2]
[384179665,1757283049985,-883.9,0.00013972,2]
[384179667,1757283049995,-480.0,0.00013972,2]
[384179669,1757283050005,-1807.32,0.00013972,2]
[384179671,1757283050014,-480.0,0.00013972,2]
[384179673,1757283050023,-480.0,0.00013972,2]
[384179675,1757283050032,-1117.18,0.00013972,2]
[384179676,1757283050042,-480.0,0.00013972,2]
[384179678,1757283050051,-480.0,0.00013972,2]
[384179680,1757283050060,-480.0,0.00013972,2]
[384179682,1757283050070,-480.0,0.00013972,2]
[384179684,1757283050079,-2174.71,0.00013972,2]
[384179686,1757283050089,-7362.7,0.00013972,2]
[384179688,1757283050098,-480.0,0.00013972,2]
[384179690,1757283050109,-480.0,0.00013972,2]
[384179692,1757283050119,-763.08,0.00013972,2]
[384179694,1757283050128,-622.64,0.00013972,2]
[384179696,1757283050137,-480.0,0.00013972,2]
[384179698,1757283050146,-281.11,0.00013972,2]
[384179700,1757283050155,-186.66316819,0.00013972,2]
[384179702,1757283050165,-480.0,0.00013972,2]
[384179704,1757283050175,-2342.03,0.00013972,2]
[384179705,1757283050184,-480.0,0.00013972,2]
[384179707,1757283050193,-483.45742692,0.00013972,2]
[384179709,1757283050203,-1528.62,0.00013972,2]
[384179711,1757283050212,-480.0,0.00013972,2]
[384179713,1757283050222,-1151.07,0.00013972,2]
[384179715,1757283050231,-977.64,0.00013972,2]
[384179717,1757283050240,-2091.75,0.00013972,2]
[384179719,1757283050249,-480.0,0.00013972,2]
[384179721,1757283050258,-480.0,0.00013972,2]
[384179723,1757283050268,-480.0,0.00013972,2]
[384179725,1757283050277,-697.39,0.00013972,2]
[384179727,1757283050286,-480.0,0.00013972,2]
[384179729,1757283050295,-246.21616653,0.00013972,2]
[384179731,1757283050304,-480.0,0.00013972,2]
[384179732,1757283050315,-1299.7,0.00013972,2]
[384179734,1757283050324,-480.0,0.00013972,2]
[384179736,1757283050333,-669.86,0.00013972,2]
[384179738,1757283050343,-480.0,0.00013972,2]
[384179740,1757283050351,-589.18,0.00013972,2]
[384179742,1757283050361,-523.71,0.00013972,2]
[384179744,1757283050370,-480.0,0.00013972,2]
[384179746,1757283050380,-480.0,0.00013972,2]
[384179748,1757283050389,-480.0,0.00013972,2]
[384179750,1757283050398,-480.0,0.00013972,2]
[384179752,1757283050407,-480.0,0.00013972,2]
[384179754,1757283050416,-480.0,0.00013972,2]
[384179756,1757283050427,-480.0,0.00013972,2]
[384179758,1757283050437,-480.0,0.00013972,2]
[384179760,1757283050447,-4581.29,0.00013972,2]
[384179762,1757283050456,-480.0,0.00013972,2]
[384179763,1757283050465,-480.0,0.00013972,2]
[384179765,1757283050475,-480.0,0.00013972,2]
[384179767,1757283050484,-774.08,0.00013972,2]
[384179769,1757283050493,-737.67,0.00013972,2]
[384179771,1757283050503,-480.0,0.00013972,2]
[384179773,1757283050512,-480.0,0.00013972,2]
[384179775,1757283050521,-574.65,0.00013972,2]
[384179777,1757283050531,-480.0,0.00013972,2]
[384179779,1757283050540,-480.0,0.00013972,2]
[384179781,1757283050549,-480.0,0.00013972,2]
[384179783,1757283050561,-2232.14,0.00013972,2]
[384179785,1757283050571,-480.0,0.00013972,2]
[384179787,1757283050580,-480.0,0.00013972,2]
[384179789,1757283050589,-480.0,0.00013972,2]
[384179791,1757283050599,-526.01,0.00013972,2]
[384179793,1757283050608,-833.84,0.00013972,2]
[384179794,1757283050620,-1143.35,0.00013972,2]
[384179796,1757283050629,-1258.59,0.00013972,2]
[384179798,1757283050640,-480.0,0.00013972,2]
[384179800,1757283050650,-1283.26,0.00013972,2]
[384179802,1757283050659,-4046.25,0.00013972,2]
[384179804,1757283050668,-480.0,0.00013972,2]
[384179806,1757283050677,-366.59151439,0.00013972,2]
[384179808,1757283050686,-480.0,0.00013972,2]
[384179810,1757283050695,-480.0,0.00013972,2]
[384179812,1757283050704,-480.0,0.00013972,2]
[384179814,1757283050713,-1676.14,0.00013972,2]
[384179816,1757283050722,-480.92031988,0.00013972,2]
[384179817,1757283050732,-480.0,0.00013972,2]
[384179819,1757283050741,-480.0,0.00013972,2]
[384179821,1757283050751,-2389.63,0.00013972,2]
[384179823,1757283050760,-480.0,0.00013972,2]
[384179832,1757283050842,-480.0,0.00013972,2]
[384179834,1757283050851,-480.0,0.00013972,2]
[384179836,1757283050860,-480.0,0.00013972,2]
[384179838,1757283050869,-480.0,0.00013972,2]
[384179840,1757283050878,-480.0,0.00013972,2]
[384179842,1757283050887,-480.0,0.00013972,2]
[384179843,1757283050896,-903.73,0.00013972,2]
[384179845,1757283050906,-480.0,0.00013972,2]
[384179847,1757283050915,-480.0,0.00013972,2]
[384179849,1757283050925,-480.0,0.00013972,2]
[384179851,1757283050934,-538.61,0.00013972,2]
[384179853,1757283050943,-464.93071131,0.00013972,2]
[384179854,1757283050953,-480.0,0.00013972,2]
[384179856,1757283050962,-889.35,0.00013972,2]
[384179858,1757283050971,-193.67201749,0.00013972,2]
[384179860,1757283050981,-480.0,0.00013972,2]
[384179862,1757283050990,-2277.06,0.00013972,2]
[384179864,1757283050999,-480.0,0.00013972,2]
[384179866,1757283051008,-766.51,0.00013972,2]
[384179868,1757283051017,-480.0,0.00013972,2]
[384179869,1757283051027,-480.0,0.00013972,2]
[384179871,1757283051038,-480.0,0.00013972,2]
[384179873,1757283051047,-480.0,0.00013972,2]
[384179875,1757283051057,-480.0,0.00013972,2]
[384179877,1757283051066,-628.96,0.00013972,2]
[384179879,1757283051076,-480.0,0.00013972,2]
[384179881,1757283051085,-480.0,0.00013972,2]
[384179883,1757283051094,-480.0,0.00013972,2]
[384179885,1757283051104,-480.0,0.00013972,2]
[384179887,1757283051113,-480.0,0.00013972,2]
[384179889,1757283051122,-480.0,0.00013972,2]
[384179891,1757283051131,-952.13,0.00013972,2]
[384179892,1757283051140,-480.0,0.00013972,2]
[384179894,1757283051149,-480.0,0.00013972,2]
[384179896,1757283051159,-480.0,0.00013972,2]
[384179898,1757283051168,-480.0,0.00013972,2]
[384179900,1757283051177,-481.9906898,0.00013972,2]
[384179902,1757283051186,-691.52,0.00013972,2]
[384179904,1757283051195,-480.0,0.00013972,2]
[384179906,1757283051204,-171.77526281,0.00013972,2]
[384179908,1757283051214,-480.0,0.00013972,2]
[384179910,1757283051223,-480.0,0.00013972,2]
[384179912,1757283051232,-480.0,0.00013972,2]
[384179914,1757283051242,-481.96,0.00013972,2]
[384179915,1757283051251,-480.0,0.00013972,2]
[384179917,1757283051261,-480.0,0.00013972,2]
[384179919,1757283051270,-480.0,0.00013972,2]
[384179921,1757283051279,-480.0,0.00013972,2]
[384179923,1757283051289,-500.0,0.00013972,2]
[384179925,1757283051298,-500.0,0.00013973,2]
[384179927,1757283051308,-500.0,0.00013973,2]
[384179929,1757283051318,-500.0,0.00013973,2]
[384179931,1757283051328,-630.30409973,0.00013973,2]
[384179933,1757283051338,-500.0,0.00013973,2]
[384179935,1757283051347,-500.0,0.00013973,2]
[384179937,1757283051360,-555.17663406,0.00013973,2]
[384179939,1757283051369,-212.98373767,0.00013973,2]
[384179941,1757283051378,-481.76753524,0.00013973,2]
[384179943,1757283051387,-500.0,0.00013973,2]
[384179945,1757283051397,-500.0,0.00013973,2]
[384179947,1757283051407,-500.0,0.00013973,2]
[384179949,1757283051416,-500.0,0.00013973,2]
[384179950,1757283051425,-500.0,0.00013973,2]
[384179952,1757283051435,-500.0,0.00013973,2]
[384179954,1757283051444,-500.0,0.00013973,2]
[384179956,1757283051453,-500.0,0.00013973,2]
[384179958,1757283051462,-500.0,0.00013973,2]
[384179960,1757283051471,-500.0,0.00013973,2]
[384179962,1757283051481,-500.0,0.00013973,2]
[384179964,1757283051491,-500.0,0.00013973,2]
[384179966,1757283051500,-500.0,0.00013973,2]
[384179968,1757283051509,-500.0,0.00013973,2]
[384179970,1757283051519,-377.92940971,0.00013973,2]
[384179972,1757283051528,-182.09527421,0.00013973,2]
[384179973,1757283051537,-158.81261182,0.00013973,2]
[384179975,1757283051547,-340.62305768,0.00013973,2]
[384179977,1757283051557,-500.0,0.00013973,2]
[384179979,1757283051567,-500.0,0.00013973,2]
[384179981,1757283051577,-500.0,0.00013973,2]
[384179983,1757283051586,-500.0,0.00013973,2]
[384179985,1757283051595,-500.0,0.00013973,2]
[384179987,1757283051604,-500.0,0.00013973,2]
[384179989,1757283051614,-502.20235439,0.00013973,2]
[384179991,1757283051623,-500.0,0.00013973,2]
[384179993,1757283051632,-500.0,0.00013973,2]
[384179994,1757283051641,-500.0,0.00013973,2]
[384179997,1757283051651,-500.0,0.00013973,2]
[384179998,1757283051660,-500.0,0.00013973,2]
[384180000,1757283051670,-500.0,0.00013973,2]
[384180002,1757283051679,-500.0,0.00013973,2]
[384180004,1757283051689,-500.10108642,0.00013973,2]
[384180006,1757283051698,-500.0,0.00013973,2]
[384180008,1757283051708,-518.98411284,0.00013973,2]
[384180010,1757283051717,-500.0,0.00013973,2]
[384180012,1757283051726,-500.0,0.00013973,2]
[384180014,1757283051735,-500.0,0.00013973,2]
[384180016,1757283051744,-500.0,0.00013973,2]
[384180018,1757283051754,-160.92643429,0.00013973,2]
[384180020,1757283051763,-260.0087348,0.00013973,2]
[384180022,1757283051772,-500.0,0.00013973,2]
[384180024,1757283051781,-500.16837161,0.00013973,2]
[384180026,1757283051790,-500.0,0.00013973,2]
[384180028,1757283051799,-500.0,0.00013973,2]
[384180029,1757283051809,-500.0,0.00013973,2]
[384180030,1757283051817,-252.44391793,0.00013973,2]
[384180031,1757283051826,-261.7,0.00013987,2]
[384180032,1757283051835,-23082.11119819,0.0001399,2]
[384180067,1757283052551,-480.0,0.00013698,2]
[384180069,1757283052564,-480.0,0.00013698,2]
[384180071,1757283052574,-343.89516267,0.0001391,2]
[384180073,1757283052584,-625.70560215,0.00013972,2]
[384180075,1757283052593,-217.33311096,0.00013972,2]
[384180077,1757283052603,-7096.15097579,0.0001399,2]
[384180079,1757283052615,-12.01642476,0.0001399,2]
[384180081,1757283052625,-500.0,0.00013997,2]
[384180083,1757283052635,-420.25,0.00013997,2]
[384180085,1757283052645,-789.81390211,0.00013998,2]
[384180088,1757283052656,-517.57280667,0.00013998,2]
[384180090,1757283052668,-258.67234176,0.00013998,2]
[384180539,1757283057123,500.0,0.00013597,2]
[384180543,1757283057158,500.0,0.00013597,2]
[384180548,1757283057192,500.0,0.00013597,2]
[384180552,1757283057226,357.41878379,0.00013597,2]
[384180557,1757283057262,500.0,0.00013597,2]
[384180562,1757283057301,188.85351981,0.00013597,2]
[384180567,1757283057335,226.35047669,0.00013597,2]
[384180571,1757283057369,455.15992351,0.00013597,2]
[384180626,1757283057888,13536.89008742,0.00013498,2]
[384181022,1757283069832,171.88792705,0.0001356,2]
[384181023,1757283074823,161.68443594,0.00013597,2]
[384181043,1757283190019,158.36380827,0.00013598,2]
[384181046,1757283233899,180.18472611,0.00013598,2]
[384181047,1757283243096,960.0,0.00024657,120]
[384181073,1757283441390,157.66163532,0.00013598,2]
[384181075,1757283530204,158.36380824,0.00013598,2]
[384181076,1757283585584,500.0,0.00013533,2]
[384181078,1757283653205,157.66163532,0.00013598,2]
[384181083,1757283852166,157.66163532,0.00013598,2]
[384181084,1757283866473,158.36380824,0.00013598,2]
[384181086,1757284037742,157.66163532,0.00013598,2]
[384181106,1757284185356,500.0,0.00013533,2]
[384181107,1757284200587,158.36380824,0.00013597,2]
[384181108,1757284202623,158.36380824,0.00013598,2]
[384181109,1757284213017,157.66163532,0.00013597,2]
[384181137,1757284232790,-300.0,0.00013695,2]
[384181139,1757284232800,-479.38683539,0.00013695,2]
[384181148,1757284232882,-338.91554705,0.00013695,2]
[384181151,1757284232894,-381.69761756,0.00013695,2]
[384181155,1757284232904,-480.0,0.00013696,2]
[384181158,1757284232914,-9471.54587137,0.00013696,2]
[384181160,1757284232930,-468.6273283,0.00013696,2]
[384181318,1757284237202,168.67683379,0.00013287,2]
[384181339,1757284238698,-490.21663662,0.00013696,2]
[384181343,1757284238788,-2129.4,0.00013696,2]
[384181344,1757284238800,-1209.45809437,0.00013696,2]
[384181345,1757284238811,-4605.79999998,0.00013696,2]
[384181402,1757284241044,-2140.9576,0.00013696,2]
[384181639,1757284244065,-1374.99916399,0.00013696,2]
[384182689,1757284255524,8143.53557612,0.00013598,2]
[384182968,1757284404753,157.66163532,0.00013597,2]
[384182971,1757284545776,7531.50285581,0.00013598,2]
[384182972,1757284554863,1200.0,0.00013557,2]
[384182973,1757284577586,384.16252336,0.00013557,2]
[384182975,1757284620253,157.66163532,0.00013597,2]
[384182979,1757284786123,500.0,0.00013531,2]
[384182980,1757284831789,157.66163532,0.00013597,2]
[384182981,1757284836052,5021.00190388,0.00013598,2]
[384182984,1757285029779,154.23611861,0.00013597,2]
[384182985,1757285126491,3347.33460258,0.00013598,2]
[384182995,1757285386191,500.0,0.00013531,2]
[384182998,1757285416775,2231.55640172,0.00013598,2]
[384183032,1757285432107,-918.02637208,0.00013691,2]
[384183035,1757285432120,-281.97362792,0.00013691,2]
[384183037,1757285432129,-361.19662745,0.00013692,2]
[384183039,1757285432141,-838.80337255,0.00013692,2]
[384183041,1757285432151,-300.0,0.00013692,2]
[384183043,1757285432160,-300.0,0.00013692,2]
[384183045,1757285432171,-300.0,0.00013692,2]
[384183047,1757285432181,-300.0,0.00013692,2]
[384183049,1757285432191,-6373.48352247,0.00013696,2]
[384183051,1757285432202,-423.35000001,0.00013696,2]
[384183307,1757285438609,176.96454319,0.00013287,2]
[384183339,1757285440187,-289.79406123,0.00013696,2]
[384183647,1757285443330,-341.5,0.00013696,2]
[384183909,1757285446038,-1200.45262,0.00013696,2]
[384183911,1757285446050,-550.88,0.00013696,2]
[384183921,1757285446163,-4909.06298013,0.00013696,2]
[384185135,1757285487258,714.75,0.00012329,2]
[384185136,1757285490549,153.0753571,0.00013597,2]
[384185137,1757285492543,153.07535709,0.00013597,2]
[384185138,1757285494536,153.07535709,0.00013598,2]
[384185139,1757285496542,153.07535709,0.00013598,2]
[384185140,1757285497704,595.62,0.00012329,2]
[384185141,1757285508207,496.35,0.00012329,2]
[384185142,1757285509447,152.981155,0.0001342,2]
[384185143,1757285518947,413.63,0.00012329,2]
[384185144,1757285529717,344.69,0.00012329,2]
[384185146,1757285540251,287.24,0.00012329,2]
[384185147,1757285550897,239.37,0.00012329,2]
[384185148,1757285561310,199.47,0.00012329,2]
[384185149,1757285571718,166.23,0.00012329,2]
[384185150,1757285582618,831.17,0.00012329,2]
[384185156,1757285707022,1487.70426782,0.00013598,2]
[384185157,1757285799029,639.03043065,0.00013274,2]
[384185158,1757285801253,2556.12172259,0.00013274,2]
[384185159,1757285803325,5745.52260194,0.00013274,2]
[384185161,1757285997218,991.80284522,0.00013598,2]
[384185167,1757286288062,661.2018968,0.00013598,2]
[384185169,1757286473150,207.86243779,0.00013558,2]
[384185176,1757286601649,440.80126454,0.00013598,2]
[384185187,1757286632173,-1200.0,0.00013694,2]
[384185188,1757286632182,-1200.0,0.00013695,2]
[384185189,1757286632192,-300.0,0.00013695,2]
[384185190,1757286632201,-7914.5,0.00013696,2]
[384185191,1757286632213,-24132.15333268,0.00013696,2]
[384185195,1757286638203,-325.21779113,0.00013696,2]
[384185196,1757286638232,-561.25341612,0.00013696,2]
[384185197,1757286638343,-2494.67448492,0.00013696,2]
[384185879,1757286646491,-7652.97867399,0.00013696,2]
[384186243,1757286670767,438.28,0.00012329,2]
[384186246,1757286842309,300.0,0.00013597,2]
[384186248,1757286902431,300.0,0.00013597,2]
[384186249,1757286906400,224.0,0.00013597,2]